Cogmind - Beta 14 @@@ ROGUE MODE // 2024.10.22 @ 22:00:12 Player: Udabudha Result: Destroyed by as-08594 with Assembled Blade Performance ------------- Evolutions (0) 0 Regions Visited (0) 0 Robots Destroyed (0) 0 Value Destroyed (0) 0 Prototype IDs (0) 0 Alien Tech Used (0) 0 Bonus (0) 0 TOTAL SCORE: 0 Bonus ------- None Cogmind --------- Core Integrity 0/250 Matter 258/300 Energy 100/100 System Corruption 0% Temperature Cool (0) Movement Core (100) Ox1 Location -11/Scrapyard Parts ------- > --- POWER (1) -------- (None) > --- PROPULSION (2) --- (None) > --- UTILITY (2) ------ Small Storage Unit > --- WEAPON (2) ------- (None) > --- INVENTORY (8) ---- Light Treads Light Treads Aluminum Leg Aluminum Leg Small Laser Peak State ------------ > --- POWER ------------ Ion Engine > --- PROPULSION ------- Wheel Compact Wheel > --- UTILITY ---------- Small Storage Unit > --- WEAPON ----------- Medium Laser Light Assault Rifle > --- INVENTORY -------- Light Ion Engine Small Laser [Rating: 6] Favorites ----------- Power Ion Engine Engine Ion Engine Propulsion Compact Wheel Wheel Compact Wheel Utility Small Storage Unit Storage Small Storage Unit Weapon Light Assault Rifle Energy Gun Medium Laser Ballistic Gun Light Assault Rifle Build | -11 ------- Run | Yrd Slots Evolved . | . Power . | . Propulsion . | . Utility . | . Weapon . | . Parts Attached 7 | 7 Power 2 | 2 Engine 2 | 2 Core . | . Reactor . | . Propulsion 2 | 2 Treads . | . Leg . | . Wheel 2 | 2 Hover . | . Flight . | . Utility 1 | 1 Device . | . Storage 1 | 1 Processor . | . Hackware . | . Protection . | . Artifact . | . Weapon 2 | 2 Energy Gun 1 | 1 Energy Cannon . | . Ballistic Gun 1 | 1 Ballistic Cannon . | . Launcher . | . Special Weapon . | . Impact Weapon . | . Slashing Weapon . | . Piercing Weapon . | . Special Melee Weapon . | . Unidentified Prototypes . | . Parts Lost 5 | 5 Power 2 | 2 Propulsion 1 | 1 Utility . | . Weapon 2 | 2 Highest Loss Streak 4 | 4 To Critical Strikes . | . Average Slot Usage (%) . | . Peak Build Rating 6 | 6 Average Rating 5 | 5 On Entrance . | . Naked Turns . | . Heaviest Build 13 | 13 Greatest Support 26 | 26 Greatest Overweight (x) . | . Average Overweight (x) . | . Largest Inventory Capacity 8 | 8 Average Capacity 7 | 7 Most Carried 6 | 6 Average Carried 5 | 5 Final Capacity 8 | 8 Final Carried 5 | 5 Class Distribution -------------------- None Dominant Class ---------------- None Resources | -11 ----------- Run | Yrd Matter Collected 200 | 200 Remotely . | . Salvage Created . | . Parts . | . Haulers Intercepted . | . Recyclers Shooed . | . Parts Field Recycled . | . Retrieved Matter . | . Parts Self-Destructed . | . Prevented . | . Kills | -11 ------- Run | Yrd Combat Hostiles Destroyed . | . Classes Destroyed . | . Best Kill Streak . | . Combat Bots Only . | . Max Kills in Single Turn . | . Gunslinging . | . Exploded . | . Melee . | . Uniques/NPCs Destroyed . | . Combat | -11 -------- Run | Yrd Hostile Shots Fired 51 | 51 Missed 16 | 16 Damage Taken 697 | 697 Core 266 | 266 Absorbed by Shields . | . Core Remaining (%) . | . Volleys Fired 3 | 3 Largest 2 | 2 Hottest 70 | 70 Shots Fired 6 | 6 Gun 6 | 6 Cannon . | . Launcher . | . Special . | . Kinetic 3 | 3 Thermal 3 | 3 Explosive . | . Electromagnetic . | . Robot Hit Streak 1 | 1 Robot Miss Streak 3 | 3 Penetration Max . | . Secondary Targets . | . Shots Hit Robots 1 | 1 Core Hits 2 | 2 Critical Kills . | . Critical Parts Destroyed . | . Critical Strikes . | . Melee Attacks . | . Impact . | . Slashing . | . Piercing . | . Sneak Attacks . | . Combat Hostiles . | . Follow-up Attacks . | . Damage Inflicted 16 | 16 Guns 9 | 9 Cannons . | . Explosions . | . Melee . | . Ramming 7 | 7 Kinetic 9 | 9 Thermal . | . Explosive . | . Electromagnetic . | . Impact . | . Slashing . | . Piercing . | . Highest Corruption . | . Average Corruption . | . Corruption Purged . | . Corruption Blocked . | . Overload Shots . | . Overflow Damage . | . Projectiles . | . Explosions . | . Melee . | . Knockbacks . | . Impact . | . Kinetic . | . Secondary . | . Self-Inflicted Damage 3 | 3 Shots . | . Rammed 2 | 2 Targets Rammed 2 | 2 Kicked . | . Crushed . | . Highest Temperature 40 | 40 Average Temperature 21 | 21 Received Heat Transfer 180 | 180 Siege Activations . | . Robots Corrupted . | . Combat Hostiles . | . Parts Fried . | . Impact Corruptions . | . Robots Melted . | . Combat Hostiles . | . Parts Melted . | . Heat Transferred . | . Parts Sabotaged . | . Parts Stolen . | . Parts Stripped . | . Power Chain Reactions . | . Alert | -11 ------- Run | Yrd Peak Influence . | . Initial . | . Average . | . Maximum Alert Level . | . Low Security (%) 100 | 100 Level 1 . | . Level 2 . | . Level 3 . | . Level 4 . | . Level 5 . | . High Security . | . Max Security . | . Squads Dispatched . | . Investigation . | . Extermination . | . Reinforcement . | . Assault . | . Garrison . | . Intercept . | . Searches Triggered . | . Construction Impeded . | . Haulers Reinforced . | . Active Scanning Responses . | . Cargo Convoy Interrupts . | . Stealth | -11 --------- Run | Yrd Distress Signals . | . Communications Jammed . | . Distress Signals . | . Times Spotted 18 | 18 Peak Tracking Total 20 | 20 Tactical Retreats 3 | 3 Traps | -11 ------- Run | Yrd Traps Triggered . | . Indirectly . | . Trap Hack Attempts . | . Triggered . | . Disarmed . | . Reprogrammed . | . Reused . | . Traps Extracted . | . Installed . | . Triggered . | . Machines | -11 ---------- Run | Yrd Machines Disabled . | . Max in Single Turn . | . Machines Repaired . | . Machines Dismantled . | . Machines Sabotaged . | . Overloaded Fab Kills . | . Hacking | -11 --------- Run | Yrd Machines Accessed . | . Terminals . | . Fabricators . | . Repair Stations . | . Recycling Units . | . Scanalyzers . | . Garrison Access . | . Total Hacks . | . Successful . | . Failed . | . Catastrophic . | . Database Lockouts . | . Manual . | . Terminals . | . Fabricators . | . Repair Stations . | . Recycling Units . | . Scanalyzers . | . Garrison Access . | . Terminal Hacks . | . Fabricator Hacks . | . Repair Station Hacks . | . Recycling Unit Hacks . | . Scanalyzer . | . Garrison Access Hacks . | . Unauthorized Hacks . | . Terminals . | . Fabricators . | . Repair Stations . | . Recycling Units . | . Scanalyzers . | . Garrison Access . | . Data Cores Recovered . | . Used . | . Hacking Detections . | . Full Trace Events . | . Feedback Events . | . Feedback Blocked . | . Robot Schematics Acquired . | . Robots Built . | . Authchips . | . Time . | . Total Robot Build Rating . | . Part Schematics Acquired . | . Parts Built . | . Authchips . | . Time . | . Total Part Build Rating . | . Parts Repaired . | . Time . | . Parts Recycled . | . Recycled Matter . | . Retrieved Matter . | . Retrieved Components . | . Parts Scanalyzed . | . Part Schematics Acquired . | . Parts Damaged . | . Bothacking | -11 ------------ Run | Yrd Used RIF Installer . | . Robots Hacked . | . Non-combat . | . Combat . | . Robot Hacks Applied . | . Relay Couplers Released . | . Fabnet Peak Effective % . | . Robots Rewired . | . Allies Hacked . | . Hacks Repelled . | . Allies | -11 -------- Run | Yrd Total Allies . | . Largest Group . | . Highest-Rated Group . | . Highest-Rated Ally . | . Total Orders . | . Ally Attacks . | . Total Damage . | . Kills . | . Allies Corrupted . | . Allies Melted . | . Intel | -11 ------- Run | Yrd Robot Analysis Total . | . Derelict Logs Recovered . | . Drone Launches . | . Drone Recoveries . | . Exploration | -11 ------------- Run | Yrd Turns Passed 4811 | 4811 Spaces Moved 1253 | 1253 Core 5 | 5 Treads . | . Legs . | . Wheels 1248 | 1248 Hover . | . Flight . | . Fastest Speed 50 | 50 Average Speed 90 | 90 Slowest Speed 100 | 100 Overloaded Moves . | . Propulsion Burnouts . | . Robots Hopped . | . Cave-ins Triggered . | . Exploration Rate (%) 119 | 119 Regions Visited . Branch Regions . Pre-discovered Areas . | . Known Exits Taken . | . Unknown Exits Taken . | . Scrap Searched . | . Spaces Dug . | . Terrain Destroyed . | . Melee . | . Projectile . | . AOE . | . Terrain Rammed . | . Walls Destroyed . | . Machines Disabled . | . Actions | -11 --------- Run | Yrd Total 4931 | 4931 Wait 3654 | 3654 Move 1253 | 1253 Hop . | . Pick Up 12 | 12 Fast Attach . | . Attach 7 | 7 Detach . | . Swap . | . Drop . | . Fire 3 | 3 Melee . | . Ram 2 | 2 Kick . | . Crush . | . Escape Stasis . | . Rewire . | . Trap . | . Miscellaneous . | . Route ------- -11/Scrapyard (discovered 1 exit: [*Mat]) History --------- Turn | Location | Event 4 | -11/Scrapyard | Discovered new exit (range 16) 4714 | -11/Scrapyard | Assembled infested the area 4780 | -11/Scrapyard | Core integrity fell below 50% 4794 | -11/Scrapyard | Core integrity fell below 20% 4804 | -11/Scrapyard | Lost 4 parts (2p2w) 4812 | -11/Scrapyard | Destroyed by as-08594 with Assembled Blade Last Messages --------------- T-07 Excavator destroyed. [Achievement: Hunted] T-07 Excavator destroyed. as-79630 destroyed. Ion Engine destroyed. as-12635 sneak attacks. K-01 Serf destroyed. as-41071 destroyed. Med. Laser destroyed. Lgt. Ion Engine destroyed. Lgt. Assault Rifle destroyed. Wheel severed. as-08594 sneak attacks. T-07 Excavator destroyed. as-12635 sneak attacks. T-07 Excavator destroyed. as-12635 sneak attacks. T-07 Excavator destroyed. Com. Wheel destroyed. Slammed into as-12635. Map ----- +----------------------------------------------------+ | #????????#!=#????????????# | | #???????? ????????????# ########## ###### # | | #????????# #????????????## ##????????# ???# # | | #????????# #?????????????# #?????????# ?# # | | #???????## ##########????# #?????????# ## # | | #???????# # #????# #?????????# ## # | | #???????# # ##???# ########### ## # | | #???????# #???# # # ## | | #???????# # #???# # # ## # | | #????##?## ## #???# # ######## # | | ##% ## #???# # #??????# # | | ## #???# # ######## # | | ## #???# # # # | | ## ## #???# # # # # | | ############### # # | | #########* ##### ##### # # | | #??????##%################ #### # # | | #??????# = ############ # # | | #??????# ## # ###### ########### # | | #??????# ## #????### # # | | #?###### ## # #??????# # # | | ## # ## # #??????# # | | ## # ############ #?#### # # # | | ### # #???# # #? # # # | | # # #???# # # #########?# # | | # # #???# @# # #?######### # | | # # #???# aa #?# ## # | | # # #???# #a!# #?# ## # | | # ########???# #a!# #?# ## | | # #??????????########=a########?# ## # | | # #?##########???# =%*| #?????# ## # | | # #?# #???# ! #??????? ## # | | #?? #?# #???# ########## ### | | ###### ### ##### | | = ! | | = =%| ### ###### ### | | ####### ### !%##### < # ??# ##### | | ????? # #???# # ## #???? | | ??? # #???########## ## #???? | | ?? #### ##########??????# ## #???? | | ?# #??# # #??????# ## #???? | | ?# #??# # #??????# ## #???? | | ?# #??# #??????######### #???? | | ?# #??# # #??????????????# #???? | | ?# #??# # #??????????????# #???? | | ?# #??# #? #??????????????######???? | | ?###########?# #? #???????????????????????? | | ???# # #?? #???????????????????????? | | ???# # #?? #???????????????????????? | | ???# #???######???????????????????????? | +----------------------------------------------------+ Best States ------------- Heat Dissipation 25 Energy Generation 10 Energy Capacity 250 Matter Stores 247 Matter Capacity 300 Sight Range 16 Terrain Scan Density 10 Evasion (%) 42 Item Schematics ----------------- None Robot Schematics ------------------ None Fabricated ------------ Nothing Alien Tech Used ----------------- None Achievements -------------- Hunted Challenges ------------ None Game ------ Seed SwarmUltimateFlakker Manual? 0 Play Time 00:18:59 Cumulative 3.3 hours Start 2024.10.21 @ 22:13:46 End 2024.10.22 @ 22:00:12 Sessions 2 Manual Loads 0 Difficulty Rogue Special Mode None Game No. 10 Rogue 7 Adventurer 1 Explorer 2 Win Type - Total 0 Types 0/0/0/0/0/0/0/0/0 Lore% 8 Gallery% 11 Achievement% 14 Wizard Run 0 Options --------- Layout 2 ASCII 0 Keyboard 0 Movement Numpad Keybinds 0 Fullscreen 1 Font 48/Smallcaps Map View 50x44 Zoom Use 0% Tactical HUD 0 Map Filters NONE Filters NONE Steam 1 RUN: 11c610c0-a083-42b5-834a-b7f2f6b133cf